fUST/lending_fUST_20250916
["ID","MTS","AMOUNT","RATE_DAILY","PERIOD"]
[385725899,1757994649207,-151.0,0.00022632,2]
[385725900,1757994649216,-238.36251113,0.00022632,2]
[385725901,1757994649226,-151.0,0.00022632,2]
[385725902,1757994649235,-204.97241117,0.00022632,2]
[385725903,1757994649245,-151.0,0.00022632,2]
[385725904,1757994649254,-151.0,0.00022632,2]
[385725905,1757994649263,-151.0,0.00022632,2]
[385725906,1757994649272,-504.18871267,0.00022721,2]
[385725907,1757994649281,-503.87396356,0.00022721,2]
[385725908,1757994649290,-241.09769967,0.00022721,2]
[385725909,1757994649299,-1000.0,0.00022721,2]
[385725910,1757994649308,-505.12923683,0.00022721,2]
[385725911,1757994649317,-1000.0,0.00022721,2]
[385725912,1757994649326,-500.59864287,0.00022721,2]
[385725913,1757994649335,-500.98431332,0.00022721,2]
[385725914,1757994649344,-570.86703908,0.00022733,2]
[385725915,1757994649354,-480.0,0.00022739,3]
[385725916,1757994649363,-480.0,0.00022739,3]
[385725917,1757994649372,-472.77516837,0.00022739,3]
[385725918,1757994649381,-325.96086701,0.00022739,3]
[385725919,1757994649390,-214.38122862,0.00022739,3]
[385725920,1757994649399,-480.0,0.00022739,3]
[385725921,1757994649407,-480.0,0.00022739,3]
[385725922,1757994649417,-468.24274041,0.00022739,3]
[385725923,1757994649425,-468.15418675,0.00022739,3]
[385725924,1757994649435,-480.0,0.00022739,3]
[385725925,1757994649444,-338.27722451,0.00022739,3]
[385725926,1757994649453,-480.0,0.00022739,3]
[385725927,1757994649463,-480.0,0.00022739,3]
[385725928,1757994649471,-480.0,0.00022739,3]
[385725929,1757994649480,-480.0,0.00022739,3]
[385725930,1757994649489,-480.0,0.00022739,3]
[385725931,1757994649498,-243.69315676,0.00022739,3]
[385725932,1757994649507,-480.0,0.00022739,3]
[385725933,1757994649516,-480.0,0.00022739,3]
[385725934,1757994649525,-480.0,0.00022739,3]
[385725935,1757994649534,-480.0,0.00022739,3]
[385725936,1757994649542,-480.0,0.00022739,3]
[385725937,1757994649551,-368.58497926,0.00022739,3]
[385725938,1757994649559,-176.07166876,0.00022739,3]
[385725939,1757994649567,-480.0,0.00022739,3]
[385725940,1757994649575,-243.29623334,0.00022739,3]
[385725941,1757994649583,-480.0,0.00022739,3]
[385725942,1757994649592,-480.54225241,0.00022739,3]
[385725943,1757994649601,-480.0,0.00022739,3]
[385725944,1757994649610,-171.55262148,0.00022739,3]
[385725945,1757994649619,-480.0,0.00022739,3]
[385725946,1757994649628,-1472.67,0.00022739,3]
[385725947,1757994649637,-510.07586565,0.00022739,3]
[385725948,1757994649646,-480.0,0.00022739,3]
[385725949,1757994649656,-480.0,0.00022739,3]
[385725950,1757994649665,-480.0,0.00022739,3]
[385725951,1757994649675,-480.0,0.00022739,3]
[385725952,1757994649684,-480.0,0.00022739,3]
[385725953,1757994649694,-480.0,0.00022739,3]
[385725954,1757994649703,-480.0,0.00022739,3]
[385725955,1757994649713,-502.74,0.00022739,3]
[385725956,1757994649721,-480.0,0.00022739,3]
[385725957,1757994649730,-480.0,0.00022739,3]
[385725958,1757994649740,-345.27893656,0.00022739,3]
[385725959,1757994649749,-480.0,0.00022739,3]
[385725960,1757994649758,-480.0,0.00022739,3]
[385725961,1757994649768,-480.0,0.00022739,3]
[385725962,1757994649777,-480.0,0.00022739,3]
[385725963,1757994649785,-480.0,0.00022739,3]
[385725964,1757994649794,-480.0,0.00022739,3]
[385725965,1757994649803,-480.0,0.00022739,3]
[385725966,1757994649812,-617.56203235,0.00022739,3]
[385725967,1757994649825,-273.04189631,0.00022739,3]
[385725968,1757994649935,-206.95810369,0.00022739,3]
[385725969,1757994649954,-480.0,0.00022739,3]
[385725970,1757994649965,-317.66801234,0.00022739,3]
[385725971,1757994649975,-480.0,0.00022739,3]
[385725972,1757994649984,-480.0,0.00022739,3]
[385725973,1757994649994,-874.31,0.00022739,3]
[385725974,1757994650003,-480.0,0.00022739,3]
[385725975,1757994650012,-480.0,0.00022739,3]
[385725976,1757994650022,-480.0,0.00022739,3]
[385725977,1757994650031,-480.0,0.00022739,3]
[385725978,1757994650041,-151.0,0.00022739,7]
[385725979,1757994650050,-531.18067476,0.00022739,3]
[385725980,1757994650059,-480.0,0.00022739,3]
[385725981,1757994650069,-270.9339606,0.00022739,3]
[385725982,1757994650078,-480.0,0.00022739,3]
[385725983,1757994650087,-480.0,0.00022739,3]
[385725984,1757994650096,-480.0,0.00022739,3]
[385725985,1757994650106,-480.0,0.00022739,3]
[385725986,1757994650115,-331.79694727,0.00022739,3]
[385725987,1757994650124,-480.0,0.00022739,3]
[385725988,1757994650133,-411.15419452,0.00022739,3]
[385725989,1757994650142,-480.0,0.00022739,3]
[385725990,1757994650152,-4164.1,0.00022739,3]
[385725991,1757994650162,-480.0,0.00022739,3]
[385725992,1757994650171,-530.43,0.00022739,3]
[385725993,1757994650180,-576.84,0.00022739,3]
[385725994,1757994650189,-480.0,0.00022739,3]
[385725995,1757994650198,-480.0,0.00022739,3]
[385725996,1757994650210,-480.0,0.00022739,3]
[385725997,1757994650223,-480.0,0.00022739,3]
[385725998,1757994650232,-165.81210614,0.00022739,3]
[385725999,1757994650243,-154.11895068,0.00022739,3]
[385726000,1757994686238,924.8060762,0.00030179,120]
[385726001,1757995040234,177.6958109,0.00020642,4]
[385726002,1757995094072,387.01992843,0.000206,2]
[385726003,1757995243015,4822.3041891,0.000206,2]
[385726004,1757995290783,2482.50202599,0.000206,2]
[385726005,1757995314651,205.0,0.000206,2]
[385726008,1757995556958,164.84981268,0.00020493,3]
[385726009,1757995597960,231.885614,0.000206,2]
[385726010,1757995652090,-191.065876,0.00020738,2]
[385726011,1757995652113,-555.98188483,0.00020989,2]
[385726014,1757995677986,1022.40286829,0.000206,2]
[385726061,1757995832576,-191.065876,0.00020685,2]
[385726063,1757995832585,-395.2763665,0.00020989,2]
[385726069,1757995832627,-804.7236335,0.00020989,2]
[385726071,1757995832637,-300.0,0.00021408,2]
[385726073,1757995832646,-1200.0,0.00021408,2]
[385726074,1757995832655,-300.0,0.00021409,20]
[385726076,1757995832665,-300.0,0.00021409,20]
[385726078,1757995832675,-300.0,0.00021409,20]
[385726080,1757995832684,-300.0,0.00021409,20]
[385726083,1757995832693,-300.0,0.00021409,20]
[385726085,1757995832702,-2709.40869314,0.00021617,2]
[385726087,1757995832711,-500.0,0.00021703,2]
[385726090,1757995832721,-500.0,0.00021703,2]
[385726092,1757995832730,-300.86106436,0.00021703,2]
[385726094,1757995832739,-260.44685519,0.00021703,2]
[385726096,1757995832748,-12404.74966685,0.00021703,2]
[385726112,1757995838581,-865.50712061,0.0002099,2]
[385726158,1757995840575,-506.83698127,0.0002099,2]
[385726159,1757995840587,-463.49354728,0.0002099,2]
[385726171,1757995846602,-771.4533225,0.0002099,2]
[385726172,1757995846614,-10091.04984303,0.0002099,2]
[385726173,1757995846623,-276.79523368,0.00021703,2]
[385726174,1757995846637,-245.759326,0.00021703,2]
[385726175,1757995846646,-785.92966628,0.00021706,3]
[385726176,1757995846662,-95.32033372,0.00021706,3]
[385726177,1757995846671,-517.35387715,0.00021715,2]
[385726178,1757995846680,-517.35387715,0.00021715,2]
[385726179,1757995846689,-517.35387715,0.00021715,2]
[385726180,1757995846698,-517.35387715,0.00021715,2]
[385726181,1757995846707,-517.35387715,0.00021715,2]
[385726182,1757995846716,-517.35387715,0.00021715,2]
[385726183,1757995846725,-517.35387715,0.00021715,2]
[385726184,1757995846734,-517.35387715,0.00021715,2]
[385726185,1757995846744,-517.35387715,0.00021715,2]
[385726186,1757995846753,-517.35387715,0.00021715,2]
[385726187,1757995846762,-517.35387715,0.00021715,2]
[385726189,1757995846771,-517.35387715,0.00021715,2]
[385726190,1757995846780,-525.31316758,0.00021715,2]
[385726191,1757995846789,-322.98231116,0.00021715,2]
[385726192,1757995846801,-202.33085642,0.00021715,2]
[385726193,1757995846810,-525.31316758,0.00021715,2]
[385726194,1757995846819,-525.31316758,0.00021715,2]
[385726195,1757995846829,-525.31316758,0.00021715,2]
[385726196,1757995846838,-525.31316758,0.00021715,2]
[385726197,1757995846847,-525.31316758,0.00021715,2]
[385726198,1757995846856,-525.31316758,0.00021715,2]
[385726199,1757995846865,-7.36899593,0.00021715,2]
[385726200,1757995873860,180.0,0.00020493,3]
[385726201,1757996021881,9702.4,0.00030159,50]
[385726204,1757996188848,170.0,0.00020493,3]
[385726205,1757996230532,500.0,0.00030159,50]
[385726206,1757996242234,10000.0,0.00020577,2]
[385726208,1757996442414,504.0,0.000206,2]
[385726209,1757996503862,160.0,0.00020493,3]
[385726210,1757996550373,186.0,0.00020674,120]
[385726211,1757996551755,186.0,0.00021707,120]
[385726212,1757996553357,186.0,0.00022793,120]
[385726213,1757996554798,186.0,0.00023932,120]
[385726214,1757996556281,186.0,0.00025129,120]
[385726215,1757996573533,1774.0,0.00030182,50]
[385726216,1757996704289,302.0,0.00027767,120]
[385726219,1757996743596,169.1745352,0.00020088,2]
[385726225,1757996817858,163.0,0.00020493,3]
[385726231,1757996854115,-204.24428535,0.00020711,2]
[385726232,1757996854136,-288.13220173,0.00020811,2]
[385726233,1757996854156,-171.18194806,0.0002089,2]
[385726234,1757996854176,-88.80623955,0.00020973,2]
[385726242,1757996927990,4114.18509749,0.00026,60]
[385726300,1757997031941,-152.94626287,0.00020899,2]
[385726302,1757997031950,-545.14607468,0.00020973,2]
[385726304,1757997031959,-500.0,0.00020973,2]
[385726307,1757997031968,-500.21332873,0.00020973,2]
[385726309,1757997031977,-500.0,0.00020973,2]
[385726312,1757997031986,-500.0,0.00020973,2]
[385726315,1757997031995,-655.42,0.0002099,10]
[385726317,1757997032005,-300.0,0.00020998,2]
[385726320,1757997032013,-1200.0,0.00020998,2]
[385726322,1757997032022,-206.32968349,0.00020999,2]
[385726323,1757997032031,-534.52728169,0.00020999,2]
[385726325,1757997032040,-534.52728169,0.00020999,2]
[385726327,1757997032049,-534.52728169,0.00020999,2]
[385726328,1757997032058,-534.52728169,0.00020999,2]
[385726329,1757997032067,-534.52728169,0.00020999,2]
[385726330,1757997032076,-534.52728169,0.00020999,2]
[385726331,1757997032086,-534.52728169,0.00020999,2]
[385726332,1757997032095,-534.52728169,0.00020999,2]
[385726333,1757997032104,-534.52728169,0.00020999,2]
[385726334,1757997032113,-534.52728169,0.00020999,2]
[385726335,1757997032123,-534.52728169,0.00020999,2]
[385726336,1757997032131,-534.52728169,0.00020999,2]
[385726337,1757997032141,-534.52728169,0.00020999,2]
[385726338,1757997032151,-534.52728169,0.00020999,2]
[385726339,1757997032161,-534.52728169,0.00020999,2]
[385726340,1757997032174,-534.52728169,0.00020999,2]
[385726341,1757997032184,-539.38662061,0.00020999,2]
[385726342,1757997032193,-539.38662061,0.00020999,2]
[385726343,1757997032204,-539.38662061,0.00020999,2]
[385726344,1757997032214,-539.38662061,0.00020999,2]
[385726345,1757997032224,-539.38662061,0.00020999,2]
[385726346,1757997032233,-539.38662061,0.00020999,2]
[385726347,1757997032242,-539.38662061,0.00020999,2]
[385726348,1757997032251,-539.38662061,0.00020999,2]
[385726349,1757997032261,-539.38662061,0.00020999,2]
[385726350,1757997032270,-539.38662061,0.00020999,2]
[385726351,1757997032279,-539.38662061,0.00020999,2]
[385726352,1757997032288,-1711.86273333,0.00021,2]
[385726353,1757997032297,-14072.88401978,0.00021,2]
[385726354,1757997032309,-51601.18666118,0.00021,2]
[385726355,1757997032320,-1957.46556763,0.00021,2]
[385726356,1757997032331,-576.33285354,0.00021,2]
[385726357,1757997032342,-334.41209908,0.00021,2]
[385726382,1757997037794,-2064.69727114,0.00021,2]
[385726389,1757997037847,-84991.76380615,0.00021,2]
[385726391,1757997037858,-1394.17031906,0.00021355,2]
[385726394,1757997037870,-188.632234,0.000214,2]
[385726396,1757997037882,-608.002568,0.000214,2]
[385726398,1757997037894,-591.642094,0.000214,2]
[385726400,1757997037907,-38833.322835,0.00021452,2]
[385726403,1757997037919,-1294.942337,0.00021455,2]
[385726405,1757997037932,-14558.885144,0.00021455,2]
[385726407,1757997037944,-1394.17031905,0.00021471,2]
[385726410,1757997037956,-188.632234,0.000215,2]
[385726412,1757997037967,-188.632234,0.000215,2]
[385726414,1757997037979,-4583.38840995,0.00021516,2]
[385726416,1757997037991,-563.70424583,0.00021521,2]
[385726419,1757997038002,-1000.0,0.00021521,2]
[385726421,1757997038013,-1000.0,0.00021521,2]
[385726423,1757997038024,-1000.0,0.00021521,2]
[385726425,1757997038035,-1394.17031905,0.00021586,2]
[385726428,1757997038047,-188.632234,0.000216,2]
[385726430,1757997038059,-188.053102,0.000216,2]
[385726432,1757997038072,-151.0,0.00021603,2]
[385726434,1757997038083,-151.0,0.00021603,2]
[385726437,1757997038095,-151.0,0.00021603,2]
[385726439,1757997038106,-151.37284607,0.00021603,2]
[385726441,1757997038116,-500.0,0.00021603,2]
[385726443,1757997038127,-500.0,0.00021603,2]
[385726445,1757997038139,-500.0,0.00021603,2]
[385726447,1757997038150,-500.0,0.00021603,2]
[385726449,1757997038162,-500.0,0.00021603,2]
[385726452,1757997038174,-500.0,0.00021603,2]
[385726454,1757997038186,-500.0,0.00021603,2]
[385726456,1757997038197,-500.0,0.00021603,2]
[385726458,1757997038209,-500.0,0.00021603,2]
[385726461,1757997038221,-500.0,0.00021603,2]
[385726463,1757997038233,-500.0,0.00021603,2]
[385726465,1757997038244,-500.0,0.00021603,2]
[385726468,1757997038257,-5014.2064733,0.00021614,2]
[385726470,1757997038268,-151.0,0.00021615,2]
[385726472,1757997038278,-151.0,0.00021615,2]
[385726474,1757997038288,-151.0,0.00021615,2]
[385726476,1757997038298,-151.0,0.00021615,2]
[385726478,1757997038309,-500.0,0.00021615,2]
[385726480,1757997038319,-500.0,0.00021615,2]
[385726483,1757997038332,-151.84647639,0.00021615,2]
[385726485,1757997038344,-151.0,0.00021615,2]
[385726487,1757997038357,-151.0,0.00021615,2]
[385726489,1757997038367,-151.0,0.00021615,2]
[385726491,1757997038377,-151.0,0.00021615,2]
[385726493,1757997038389,-188.47086464,0.00021615,2]
[385726496,1757997038400,-163.33034496,0.00021615,2]
[385726498,1757997038411,-151.85723374,0.00021615,2]
[385726500,1757997038423,-151.0,0.00021615,2]
[385726502,1757997038435,-151.0,0.00021615,2]
[385726504,1757997038445,-151.0,0.00021615,2]
[385726506,1757997038455,-151.0,0.00021615,2]
[385726508,1757997038465,-151.0,0.00021615,2]
[385726511,1757997038476,-151.0,0.00021615,2]
[385726513,1757997038486,-347594.49949137,0.00021616,2]
[385726515,1757997038497,-154.738351,0.00021616,2]
[385726517,1757997038508,-151.0,0.00021616,2]
[385726519,1757997038519,-151.0,0.00021616,2]
[385726522,1757997038530,-151.0,0.00021616,2]
[385726524,1757997038542,-158.530528,0.00021616,2]
[385726526,1757997038552,-151.0,0.00021616,2]
[385726528,1757997038563,-151.0,0.00021616,2]
[385726530,1757997038573,-151.0,0.00021616,2]
[385726532,1757997038583,-151.0,0.00021616,2]
[385726534,1757997038594,-202.442081,0.00021616,2]
[385726536,1757997038604,-191.600975,0.00021616,2]
[385726539,1757997038616,-191.600975,0.00021616,2]
[385726541,1757997038626,-191.600975,0.00021616,2]
[385726543,1757997038637,-191.600975,0.00021616,2]
[385726545,1757997038647,-174.217381,0.00021616,2]
[385726547,1757997038658,-174.217381,0.00021616,2]
[385726549,1757997038669,-174.217381,0.00021616,2]
[385726551,1757997038679,-180.534982,0.00021616,2]
[385726554,1757997038690,-174.217381,0.00021616,2]
[385726556,1757997038701,-155.688121,0.00021616,2]
[385726558,1757997038711,-151.0,0.00021616,2]
[385726560,1757997038722,-151.0,0.00021616,2]
[385726562,1757997038734,-151.0,0.00021616,2]
[385726564,1757997038745,-153.442791,0.00021616,2]
[385726567,1757997038755,-151.0,0.00021616,2]
[385726569,1757997038765,-175.768189,0.00021616,2]
[385726571,1757997038776,-151.0,0.00021616,2]
[385726573,1757997038787,-151.0,0.00021616,2]
[385726575,1757997038798,-278.0,0.00021632,2]
[385726577,1757997038809,-315.44323192,0.00021673,2]
[385726580,1757997038819,-500.0,0.00021673,2]
[385726582,1757997038830,-500.0,0.00021673,2]
[385726584,1757997038841,-502.8054162,0.00021673,2]
[385726586,1757997038851,-500.0,0.00021673,2]
[385726588,1757997038862,-578.93201716,0.00021673,2]
[385726590,1757997038873,-503.82371144,0.00021673,2]
[385726592,1757997038883,-500.90422517,0.00021673,2]
[385726595,1757997038894,-366.93332035,0.00021673,2]
[385726597,1757997038904,-501.94313271,0.00021673,2]
[385726599,1757997038914,-500.0,0.00021673,2]
[385726601,1757997038925,-500.0,0.00021673,2]
[385726603,1757997038935,-500.0,0.00021673,2]
[385726605,1757997038946,-555.81978035,0.00021673,2]
[385726608,1757997038957,-500.0,0.00021673,2]
[385726610,1757997038968,-502.83507393,0.00021673,2]
[385726612,1757997038979,-378.23616508,0.00021673,2]
[385726614,1757997038988,-151.0,0.00021673,2]
[385726631,1757997039129,-151.0,0.00021673,2]
[385726633,1757997039139,-297.03601603,0.00021673,2]
[385726635,1757997039148,-151.0,0.00021673,2]
[385726637,1757997039158,-151.0,0.00021673,2]
[385726639,1757997039167,-151.0,0.00021673,2]
[385726641,1757997039177,-196.77125647,0.00021673,2]
[385726643,1757997039190,-164.55161231,0.00021673,2]
[385726645,1757997039199,-151.0,0.00021673,2]
[385726647,1757997039208,-151.0,0.00021673,2]
[385726649,1757997039218,-151.0,0.00021673,2]
[385726651,1757997039227,-151.0,0.00021673,2]
[385726653,1757997039237,-1394.17031905,0.00021702,2]
[385726655,1757997039246,-1394.17031905,0.00021817,2]
[385726657,1757997039255,-351.0,0.00021876,2]
[385726659,1757997039265,-159.61060249,0.00021889,2]
[385726661,1757997039275,-165.36353337,0.00021889,2]
[385726663,1757997039284,-164.66831296,0.00021889,2]
[385726665,1757997039293,-164.2224735,0.00021889,2]
[385726667,1757997039302,-548.19219168,0.00021889,2]
[385726669,1757997039311,-500.0,0.00021889,2]
[385726671,1757997039321,-165.01437502,0.00021889,2]
[385726673,1757997039330,-168.15323708,0.00021889,2]
[385726675,1757997039339,-152.5759938,0.00021889,2]
[385726677,1757997039349,-170.13619277,0.00021889,2]
[385726679,1757997039359,-153.25995394,0.00021889,2]
[385726681,1757997039368,-204.97241117,0.00021889,2]
[385726683,1757997039378,-151.0,0.00021889,2]
[385726684,1757997039387,-151.0,0.00021889,2]
[385726686,1757997039396,-153.61255557,0.00021889,2]
[385726688,1757997039406,-156.052,0.00021916,2]
[385726690,1757997039415,-543.24401079,0.00021917,2]
[385726692,1757997039424,-466.05891538,0.00021917,2]
[385726693,1757997039435,-471.28859209,0.00021917,2]
[385726694,1757997039444,-480.0,0.00021917,2]
[385726695,1757997039453,-479.36328785,0.00021917,2]
[385726696,1757997039463,-473.37598234,0.00021917,2]
[385726697,1757997039472,-462.99680815,0.00021917,2]
[385726698,1757997039481,-480.0,0.00021917,2]
[385726699,1757997039491,-462.19500077,0.00021917,2]
[385726700,1757997039500,-480.0,0.00021917,2]
[385726701,1757997039509,-468.1404956,0.00021917,2]
[385726702,1757997039518,-179.59981203,0.00021917,3]
[385726703,1757997039527,-462.99820776,0.00021917,2]
[385726704,1757997039537,-480.0,0.00021917,2]
[385726705,1757997039546,-468.67188597,0.00021917,2]
[385726706,1757997039556,-569.43925677,0.00021917,2]
[385726707,1757997039567,-480.0,0.00021917,2]
[385726708,1757997039576,-462.23652611,0.00021917,2]
[385726709,1757997039585,-480.0,0.00021917,2]
[385726710,1757997039594,-480.0,0.00021917,2]
[385726711,1757997039603,-450.24233419,0.00021917,2]
[385726712,1757997039613,-480.0,0.00021917,2]
[385726714,1757997039623,-466.42925234,0.00021917,2]
[385726716,1757997039635,-480.0,0.00021917,2]
[385726718,1757997039645,-480.0,0.00021917,2]
[385726720,1757997039654,-432.86391495,0.00021917,2]
[385726722,1757997039663,-480.0,0.00021917,2]
[385726724,1757997039677,-480.0,0.00021917,2]
[385726727,1757997039686,-482.89895134,0.00021917,2]
[385726729,1757997039696,-537.47889582,0.00021917,2]
[385726731,1757997039707,-467.08533644,0.00021917,2]
[385726733,1757997039719,-461.10083384,0.00021917,2]
[385726735,1757997039728,-575.14382805,0.00021917,2]
[385726737,1757997039739,-480.0,0.00021917,2]
[385726739,1757997039750,-460.77305998,0.00021917,2]
[385726741,1757997039759,-480.0,0.00021917,2]
[385726743,1757997039769,-463.00077379,0.00021917,2]
[385726745,1757997039778,-469.6489429,0.00021917,2]
[385726747,1757997039787,-151.0,0.00021917,2]
[385726749,1757997039796,-462.64317986,0.00021917,2]
[385726751,1757997039805,-461.7460389,0.00021917,2]
[385726753,1757997039815,-463.9029876,0.00021917,2]
[385726755,1757997039824,-204.700538,0.00021917,2]
[385726757,1757997039833,-151.0,0.00021917,2]
[385726759,1757997039842,-151.0,0.00021917,2]
[385726761,1757997039851,-464.12774049,0.00021917,2]
[385726763,1757997039861,-151.876733,0.00021917,2]
[385726765,1757997039870,-155.361001,0.00021917,2]
[385726767,1757997039879,-189.895693,0.00021917,2]
[385726769,1757997039888,-156.148166,0.00021917,2]
[385726771,1757997039898,-477.92165499,0.00021917,2]
[385726773,1757997039907,-487.62720452,0.00021917,2]
[385726775,1757997039916,-462.402542,0.00021917,2]
[385726777,1757997039925,-465.17336725,0.00021917,2]
[385726779,1757997039934,-480.0,0.00021917,2]
[385726781,1757997039944,-480.0,0.00021917,2]
[385726783,1757997039954,-487.5404281,0.00021917,2]
[385726785,1757997039963,-462.68099676,0.00021917,2]
[385726787,1757997039972,-462.29956393,0.00021917,2]
[385726789,1757997039982,-460.6560228,0.00021917,2]
[385726791,1757997039991,-466.70728336,0.00021917,2]
[385726793,1757997040001,-468.10708715,0.00021917,2]
[385726795,1757997040010,-462.51137773,0.00021917,2]
[385726797,1757997040019,-464.5531419,0.00021917,2]
[385726799,1757997040029,-482.61594293,0.00021917,2]
[385726801,1757997040038,-462.82756429,0.00021917,2]
[385726803,1757997040047,-480.0,0.00021917,2]
[385726805,1757997040057,-463.00955673,0.00021917,2]
[385726807,1757997040067,-480.0,0.00021917,2]
[385726809,1757997040076,-465.75296969,0.00021917,2]
[385726811,1757997040086,-501.09622338,0.00021917,2]
[385726813,1757997040095,-480.0,0.00021917,2]
[385726815,1757997040104,-466.22347238,0.00021917,2]
[385726817,1757997040113,-462.52038613,0.00021917,2]
[385726819,1757997040122,-480.0,0.00021917,2]
[385726821,1757997040132,-469.61158345,0.00021917,2]
[385726823,1757997040142,-463.07704881,0.00021917,2]
[385726825,1757997040151,-480.0,0.00021917,2]
[385726827,1757997040160,-469.28988979,0.00021917,2]
[385726829,1757997040169,-500.0,0.00021917,2]
[385726831,1757997040179,-500.0,0.00021917,2]
[385726833,1757997040188,-500.0,0.00021917,2]
[385726835,1757997040197,-503.04657393,0.00021917,2]
[385726837,1757997040206,-597.9102473,0.00021917,2]
[385726839,1757997040215,-155.420887,0.00021917,2]
[385726841,1757997040224,-480.0,0.00021917,2]
[385726843,1757997040234,-151.0,0.00021917,2]
[385726845,1757997040243,-155.445078,0.00021917,2]
[385726847,1757997040252,-480.0,0.00021917,2]
[385726849,1757997040263,-480.0,0.00021917,2]
[385726851,1757997040272,-500.0,0.00021917,2]
[385726853,1757997040281,-461.76055794,0.00021917,2]
[385726855,1757997040290,-480.0,0.00021917,2]
[385726857,1757997040299,-480.0,0.00021917,2]
[385726859,1757997040308,-480.0,0.00021917,2]
[385726861,1757997040317,-480.0,0.00021917,2]
[385726863,1757997040326,-480.0,0.00021917,2]
[385726865,1757997040336,-480.0,0.00021917,2]
[385726867,1757997040346,-480.0,0.00021917,2]
[385726869,1757997040356,-480.0,0.00021917,2]
[385726871,1757997040365,-480.0,0.00021917,2]
[385726873,1757997040375,-480.0,0.00021917,2]
[385726875,1757997040384,-480.0,0.00021917,2]
[385726877,1757997040396,-464.54992872,0.00021917,2]
[385726879,1757997040405,-480.0,0.00021917,2]
[385726881,1757997040415,-480.0,0.00021917,2]
[385726883,1757997040424,-480.0,0.00021917,2]
[385726885,1757997040433,-480.0,0.00021917,2]
[385726887,1757997040442,-480.0,0.00021917,2]
[385726889,1757997040451,-466.35324129,0.00021917,2]
[385726891,1757997040460,-480.0,0.00021917,2]
[385726893,1757997040469,-480.0,0.00021917,2]
[385726895,1757997040478,-486.40794731,0.00021917,2]
[385726897,1757997040487,-480.0,0.00021917,2]
[385726899,1757997040497,-480.0,0.00021917,2]
[385726901,1757997040506,-480.0,0.00021917,2]
[385726903,1757997040516,-472.34677947,0.00021917,2]
[385726905,1757997040525,-480.0,0.00021917,2]
[385726907,1757997040534,-480.0,0.00021917,2]
[385726909,1757997040544,-251.6631,0.00021917,2]
[385726911,1757997040553,-480.0,0.00021917,2]
[385726913,1757997040562,-486.24179082,0.00021917,2]
[385726915,1757997040571,-483.3503301,0.00021917,2]
[385726917,1757997040580,-151.0,0.00021917,2]
[385726919,1757997040590,-151.0,0.00021917,2]
[385726921,1757997040599,-151.0,0.00021917,2]
[385726923,1757997040609,-151.0,0.00021917,2]
[385726925,1757997040619,-151.0,0.00021917,2]
[385726927,1757997040628,-151.0,0.00021917,2]
[385726929,1757997040639,-151.0,0.00021917,2]
[385726931,1757997040648,-480.0,0.00021917,2]
[385726933,1757997040657,-151.0,0.00021917,2]
[385726935,1757997040667,-151.0,0.00021917,2]
[385726937,1757997040676,-151.0,0.00021917,2]
[385726939,1757997040685,-480.0,0.00021917,2]
[385726941,1757997040694,-472.05069032,0.00021917,2]
[385726943,1757997040704,-510.28193074,0.00021917,2]
[385726945,1757997040713,-463.21920225,0.00021917,2]
[385726947,1757997040722,-482.54861047,0.00021917,2]
[385726949,1757997040733,-500.0,0.00021917,2]
[385726951,1757997040742,-500.0,0.00021917,2]
[385726953,1757997040752,-500.0,0.00021917,2]